fUST/lending_fUST_20250827
["ID","MTS","AMOUNT","RATE_DAILY","PERIOD"]
[381581133,1756289459937,-480.0,0.00023157,2]
[381581135,1756289459947,-630.78,0.00023157,2]
[381581136,1756289459955,-480.0,0.00023157,2]
[381581138,1756289459965,-578.01,0.00023157,2]
[381581140,1756289459974,-815.75,0.00023157,2]
[381581141,1756289459983,-743.87,0.00023157,2]
[381581143,1756289459992,-480.0,0.00023157,2]
[381581145,1756289460002,-480.0,0.00023157,2]
[381581146,1756289460011,-480.0,0.00023157,2]
[381581148,1756289460020,-151.0,0.00023165,2]
[381581150,1756289460031,-500.0,0.00023165,2]
[381581151,1756289460042,-500.0,0.00023165,2]
[381581152,1756289460051,-500.0,0.00023165,2]
[381581154,1756289460062,-500.0,0.00023165,2]
[381581156,1756289460074,-500.0,0.00023165,2]
[381581157,1756289460084,-500.0,0.00023165,2]
[381581159,1756289460093,-151.0,0.00023165,2]
[381581161,1756289460103,-500.0,0.00023165,2]
[381581163,1756289460112,-151.0,0.00023165,2]
[381581164,1756289460122,-151.0,0.00023165,2]
[381581166,1756289460132,-151.0,0.00023165,2]
[381581168,1756289460142,-151.0,0.00023165,2]
[381581170,1756289460153,-1067.0,0.00023165,2]
[381581171,1756289460163,-151.0,0.00023165,2]
[381581173,1756289460172,-151.0,0.00023165,2]
[381581175,1756289460181,-500.0,0.00023165,2]
[381581177,1756289460191,-500.0,0.00023165,2]
[381581178,1756289460201,-151.0,0.00023165,2]
[381581180,1756289460210,-500.0,0.00023165,2]
[381581182,1756289460221,-151.34928729,0.00023165,2]
[381581184,1756289460230,-151.0,0.00023165,2]
[381581186,1756289460241,-151.65045741,0.00023165,2]
[381581187,1756289460250,-151.0,0.00023165,2]
[381581189,1756289460260,-500.0,0.00023165,2]
[381581191,1756289460270,-151.0,0.00023165,2]
[381581193,1756289460279,-151.68013633,0.00023165,2]
[381581194,1756289460289,-151.0,0.00023165,2]
[381581196,1756289460299,-151.0,0.00023165,2]
[381581198,1756289460309,-500.0,0.00023165,2]
[381581200,1756289460318,-500.0,0.00023165,2]
[381581202,1756289460327,-500.0,0.00023165,2]
[381581203,1756289460337,-501.56192813,0.00023173,2]
[381581205,1756289460347,-413.95211664,0.00023173,2]
[381581207,1756289460356,-500.0,0.00023173,2]
[381581209,1756289460365,-500.0,0.00023173,2]
[381581210,1756289460375,-500.0,0.00023173,2]
[381581212,1756289460385,-500.0,0.00023173,2]
[381581214,1756289460394,-500.0,0.00023173,2]
[381581216,1756289460403,-500.0,0.00023173,2]
[381581217,1756289460412,-500.0,0.00023173,2]
[381581219,1756289460422,-500.0,0.00023173,2]
[381581221,1756289460431,-151.05750653,0.00023173,2]
[381581223,1756289460440,-480.0,0.0002318,2]
[381581225,1756289460449,-480.0,0.0002318,2]
[381581226,1756289460459,-480.0,0.00023184,2]
[381581228,1756289460468,-731.92,0.00023184,2]
[381581230,1756289460477,-1069.75,0.00023184,2]
[381581232,1756289460486,-1626.41,0.00023184,2]
[381581234,1756289460495,-669.83,0.00023184,2]
[381581235,1756289460505,-480.0,0.00023184,2]
[381581237,1756289460515,-440.14844033,0.00023184,2]
[381581239,1756289460526,-679.13,0.00023186,2]
[381581241,1756289460535,-765.23,0.00023186,2]
[381581243,1756289460544,-480.0,0.00023186,2]
[381581244,1756289460554,-480.0,0.00023186,2]
[381581246,1756289460563,-1872.79,0.00023186,2]
[381581248,1756289460572,-3317.95,0.00023186,2]
[381581250,1756289460582,-572.11,0.00023186,2]
[381581252,1756289460591,-480.0,0.00023186,2]
[381581253,1756289460600,-946.94,0.00023186,2]
[381581255,1756289460609,-480.0,0.00023186,2]
[381581257,1756289460619,-589.41,0.00023186,2]
[381581259,1756289460631,-559.85,0.00023186,2]
[381581261,1756289460640,-480.0,0.00023187,2]
[381581263,1756289460650,-480.0,0.00023187,2]
[381581264,1756289460659,-480.0,0.00023187,2]
[381581266,1756289460668,-153.98511031,0.00023187,2]
[381581268,1756289460677,-480.0,0.00023187,2]
[381581270,1756289460687,-480.0,0.00023187,2]
[381581272,1756289460696,-480.0,0.00023187,2]
[381581274,1756289460705,-480.0,0.00023187,2]
[381581275,1756289460714,-480.0,0.00023187,2]
[381581277,1756289460723,-480.0,0.00023187,2]
[381581279,1756289460732,-480.0,0.00023187,2]
[381581281,1756289460741,-480.0,0.00023187,2]
[381581283,1756289460751,-480.0,0.00023187,2]
[381581284,1756289460760,-534.02577536,0.00023187,2]
[381581286,1756289460770,-480.0,0.00023187,2]
[381581288,1756289460779,-480.0,0.00023187,2]
[381581290,1756289460788,-480.0,0.00023187,2]
[381581292,1756289460797,-480.0,0.00023187,2]
[381581293,1756289460807,-480.0,0.00023187,2]
[381581295,1756289460816,-2423.54,0.00023187,2]
[381581297,1756289460825,-480.0,0.00023187,2]
[381581299,1756289460834,-480.0,0.00023187,2]
[381581301,1756289460842,-480.0,0.00023187,2]
[381581302,1756289460851,-1010.26,0.00023187,2]
[381581304,1756289460860,-815.03,0.00023187,2]
[381581306,1756289460870,-1044.63,0.00023187,2]
[381581308,1756289460879,-480.0,0.00023187,2]
[381581310,1756289460888,-480.0,0.00023187,2]
[381581312,1756289460897,-480.0,0.00023187,2]
[381581313,1756289460905,-480.0,0.00023187,2]
[381581315,1756289460915,-480.0,0.00023187,2]
[381581317,1756289460923,-730.74,0.00023187,2]
[381581319,1756289460933,-742.5,0.00023187,2]
[381581320,1756289460941,-591.85,0.00023187,2]
[381581322,1756289460950,-480.0,0.00023187,2]
[381581324,1756289460959,-480.0,0.00023188,2]
[381581326,1756289460968,-821.76,0.00023188,2]
[381581328,1756289460979,-420.00834717,0.00023188,2]
[381581329,1756289460988,-207.49106302,0.00023188,2]
[381581331,1756289460997,-480.0,0.00023188,2]
[381581333,1756289461007,-480.0,0.00023188,2]
[381581335,1756289461017,-480.0,0.00023188,2]
[381581337,1756289461027,-480.0,0.00023188,2]
[381581339,1756289461036,-480.0,0.00023188,2]
[381581341,1756289461045,-480.0,0.00023188,2]
[381581342,1756289461054,-480.0,0.00023188,2]
[381581344,1756289461066,-480.0,0.00023188,2]
[381581346,1756289461078,-447.49797943,0.00023188,2]
[381581348,1756289461087,-480.0,0.00023188,2]
[381581350,1756289461096,-480.0,0.00023188,2]
[381581351,1756289461105,-480.0,0.00023188,2]
[381581353,1756289461115,-678.6,0.00023188,2]
[381581355,1756289461124,-983.64,0.00023188,2]
[381581357,1756289461134,-877.75,0.00023188,2]
[381581359,1756289461144,-480.0,0.00023188,2]
[381581361,1756289461156,-480.0,0.00023188,2]
[381581362,1756289461166,-480.0,0.00023188,2]
[381581364,1756289461175,-480.0,0.00023188,2]
[381581366,1756289461184,-480.0,0.00023188,2]
[381581368,1756289461194,-480.0,0.00023188,2]
[381581370,1756289461203,-480.0,0.00023188,2]
[381581371,1756289461212,-480.0,0.00023188,2]
[381581373,1756289461222,-480.0,0.00023188,2]
[381581375,1756289461231,-151.0,0.00023188,7]
[381581377,1756289461240,-151.0,0.00023188,7]
[381581379,1756289461251,-151.0,0.00023188,7]
[381581381,1756289461272,-151.0,0.00023188,7]
[381581382,1756289461283,-151.0,0.00023188,7]
[381581384,1756289461292,-151.0,0.00023188,7]
[381581386,1756289461301,-151.0,0.00023188,7]
[381581388,1756289461311,-480.0,0.00023188,2]
[381581390,1756289461321,-151.0,0.00023188,7]
[381581391,1756289461330,-480.0,0.00023188,2]
[381581393,1756289461339,-151.0,0.00023188,7]
[381581395,1756289461349,-569.38,0.00023188,2]
[381581397,1756289461359,-480.0,0.00023188,2]
[381581399,1756289461368,-481.43,0.00023188,2]
[381581401,1756289461378,-480.0,0.00023188,2]
[381581402,1756289461387,-480.0,0.00023188,2]
[381581404,1756289461397,-540.61,0.00023188,2]
[381581406,1756289461407,-480.0,0.00023188,2]
[381581408,1756289461417,-480.0,0.00023188,2]
[381581410,1756289461426,-293.06520352,0.00023188,2]
[381581412,1756289461436,-480.0,0.00023188,2]
[381581413,1756289461445,-480.0,0.00023188,2]
[381581415,1756289461455,-480.0,0.00023188,2]
[381581417,1756289461464,-480.0,0.00023188,2]
[381581419,1756289461474,-480.0,0.00023188,2]
[381581421,1756289461483,-824.02,0.00023188,2]
[381581422,1756289461493,-543.91,0.00023188,2]
[381581424,1756289461503,-480.0,0.00023188,2]
[381581426,1756289461513,-480.0,0.00023188,2]
[381581428,1756289461522,-480.0,0.00023188,2]
[381581430,1756289461532,-480.0,0.00023188,2]
[381581432,1756289461542,-480.0,0.00023188,2]
[381581433,1756289461551,-480.0,0.00023188,2]
[381581435,1756289461561,-632.67,0.00023188,2]
[381581437,1756289461571,-480.0,0.00023188,2]
[381581439,1756289461581,-480.0,0.00023188,2]
[381581441,1756289461591,-480.0,0.00023188,2]
[381581443,1756289461601,-480.0,0.00023188,2]
[381581444,1756289461610,-480.0,0.00023188,2]
[381581446,1756289461621,-480.0,0.00023188,2]
[381581448,1756289461631,-480.0,0.00023188,2]
[381581450,1756289461640,-641.67,0.00023188,2]
[381581452,1756289461650,-480.0,0.00023189,2]
[381581454,1756289461659,-336.7531177,0.00023189,2]
[381581456,1756289461668,-1798.27,0.00023189,2]
[381581457,1756289461677,-1565.55,0.0002319,2]
[381581459,1756289461687,-1487.63,0.0002319,2]
[381581461,1756289461696,-3564.79,0.0002319,2]
[381581463,1756289461706,-1678.79,0.0002319,2]
[381581465,1756289461715,-480.0,0.0002319,2]
[381581467,1756289461724,-677.24,0.0002319,2]
[381581468,1756289461734,-3001.08,0.0002319,2]
[381581470,1756289461743,-2123.55,0.0002319,2]
[381581472,1756289461752,-570.64,0.00023191,2]
[381581473,1756289461762,-480.0,0.00023191,2]
[381581475,1756289461773,-480.0,0.00023191,2]
[381581477,1756289461783,-480.0,0.00023191,2]
[381581479,1756289461792,-480.0,0.00023191,2]
[381581480,1756289461801,-699.87,0.00023191,2]
[381581482,1756289461812,-589.43,0.00023191,2]
[381581484,1756289461822,-480.0,0.00023191,2]
[381581486,1756289461832,-480.0,0.00023191,2]
[381581487,1756289461841,-480.0,0.00023191,2]
[381581489,1756289461851,-480.0,0.00023191,2]
[381581491,1756289461861,-480.0,0.00023191,2]
[381581493,1756289461871,-480.0,0.00023191,2]
[381581495,1756289461881,-480.0,0.00023191,2]
[381581496,1756289461891,-480.0,0.00023191,2]
[381581498,1756289461901,-480.0,0.00023191,2]
[381581500,1756289461911,-480.0,0.00023191,2]
[381581502,1756289461920,-1296.08,0.00023191,2]
[381581503,1756289461930,-480.0,0.00023191,2]
[381581505,1756289461939,-998.74,0.00023191,2]
[381581507,1756289461948,-480.0,0.00023191,2]
[381581509,1756289461958,-480.0,0.00023191,2]
[381581511,1756289461968,-480.0,0.00023191,2]
[381581512,1756289461979,-480.0,0.00023191,2]
[381581514,1756289461989,-1110.68,0.00023191,2]
[381581516,1756289461999,-480.0,0.00023191,2]
[381581518,1756289462009,-363.59991824,0.00023191,2]
[381581519,1756289462019,-480.0,0.00023191,2]
[381581521,1756289462028,-660.23,0.00023191,2]
[381581523,1756289462037,-480.0,0.00023191,2]
[381581525,1756289462047,-432.13778883,0.00023191,2]
[381581526,1756289462057,-480.0,0.00023191,2]
[381581528,1756289462069,-480.0,0.00023191,2]
[381581530,1756289462083,-480.0,0.00023191,2]
[381581532,1756289462093,-760.63,0.00023191,2]
[381581534,1756289462103,-524.94,0.00023191,2]
[381581536,1756289462113,-480.0,0.00023191,2]
[381581537,1756289462124,-581.06,0.00023191,2]
[381581539,1756289462134,-703.2,0.00023191,2]
[381581541,1756289462143,-541.56,0.00023191,2]
[381581543,1756289462155,-3842.02,0.00023191,2]
[381581545,1756289462166,-480.0,0.00023191,2]
[381581546,1756289462177,-214.331818,0.00023191,7]
[381581548,1756289462188,-506.07,0.00023191,2]
[381581550,1756289462197,-480.0,0.00023191,2]
[381581552,1756289462207,-151.0,0.00023191,7]
[381581554,1756289462217,-855.47,0.00023191,2]
[381581555,1756289462226,-552.43,0.00023191,2]
[381581557,1756289462236,-151.0,0.00023191,7]
[381581559,1756289462246,-480.0,0.00023191,2]
[381581561,1756289462257,-676.34,0.00023191,2]
[381581563,1756289462268,-997.67,0.00023191,2]
[381581565,1756289462277,-500.0,0.00023191,2]
[381581566,1756289462287,-480.0,0.00023191,2]
[381581568,1756289462298,-480.0,0.00023191,2]
[381581570,1756289462310,-1905.17,0.00023191,2]
[381581572,1756289462325,-732.81,0.00023191,2]
[381581574,1756289462347,-480.0,0.00023191,2]
[381581576,1756289462367,-522.71,0.00023191,2]
[381581578,1756289462377,-485.54,0.00023191,2]
[381581579,1756289462388,-1210.7,0.00023191,2]
[381581581,1756289462400,-616.37,0.00023191,2]
[381581583,1756289462410,-487.65,0.00023191,2]
[381581585,1756289462421,-969.77,0.00023192,2]
[381581587,1756289462430,-480.0,0.00023192,2]
[381581589,1756289462440,-480.0,0.00023192,2]
[381581590,1756289462450,-480.0,0.00023192,2]
[381581592,1756289462459,-480.0,0.00023192,2]
[381581594,1756289462469,-531.26,0.00023192,2]
[381581596,1756289462479,-480.0,0.00023192,2]
[381581598,1756289462488,-480.0,0.00023192,2]
[381581600,1756289462498,-480.0,0.00023192,2]
[381581601,1756289462508,-576.98,0.00023192,2]
[381581603,1756289462517,-609.12,0.00023192,2]
[381581605,1756289462527,-480.0,0.00023192,2]
[381581606,1756289462537,-480.0,0.00023192,2]
[381581607,1756289462546,-480.0,0.00023192,2]
[381581608,1756289462556,-480.0,0.00023192,2]
[381581609,1756289462566,-480.0,0.00023192,2]
[381581610,1756289462577,-480.0,0.00023192,2]
[381581611,1756289462586,-480.0,0.00023192,2]
[381581612,1756289462596,-477.52180627,0.00023192,2]
[381581613,1756289462606,-480.0,0.00023192,2]
[381581614,1756289462616,-480.0,0.00023192,2]
[381581615,1756289462627,-480.0,0.00023192,2]
[381581616,1756289462637,-615.06,0.00023192,2]
[381581617,1756289462647,-480.0,0.00023192,2]
[381581618,1756289462658,-811.56,0.00023192,2]
[381581619,1756289462668,-480.0,0.00023192,2]
[381581620,1756289462678,-480.0,0.00023192,2]
[381581621,1756289462688,-739.22,0.00023192,2]
[381581622,1756289462698,-480.0,0.00023192,2]
[381581623,1756289462708,-480.0,0.00023192,2]
[381581624,1756289462718,-480.0,0.00023192,2]
[381581625,1756289462728,-355.77907948,0.00023192,2]
[381581626,1756289462738,-480.0,0.00023192,2]
[381581627,1756289462748,-480.0,0.00023192,2]
[381581628,1756289462758,-480.0,0.00023192,2]
[381581629,1756289462767,-773.72,0.00023192,2]
[381581630,1756289462777,-480.0,0.00023192,2]
[381581631,1756289462787,-480.0,0.00023192,2]
[381581632,1756289462797,-326.58995721,0.00023192,2]
[381581633,1756289462807,-480.0,0.00023192,2]
[381581634,1756289462818,-524.21323336,0.00023192,2]
[381581635,1756289462827,-480.0,0.00023192,2]
[381581636,1756289462836,-519.3,0.00023192,2]
[381581637,1756289462846,-480.0,0.00023192,2]
[381581638,1756289462856,-480.0,0.00023192,2]
[381581639,1756289462866,-480.0,0.00023192,2]
[381581640,1756289462875,-480.0,0.00023192,2]
[381581641,1756289462885,-480.0,0.00023192,2]
[381581642,1756289462895,-569.32,0.00023192,2]
[381581643,1756289462905,-480.0,0.00023192,2]
[381581644,1756289462915,-480.0,0.00023192,2]
[381581645,1756289462924,-480.0,0.00023192,2]
[381581646,1756289462934,-480.0,0.00023192,2]
[381581647,1756289462943,-480.0,0.00023192,2]
[381581648,1756289462954,-480.0,0.00023192,2]
[381581649,1756289462964,-480.0,0.00023192,2]
[381581650,1756289462974,-480.0,0.00023192,2]
[381581651,1756289462983,-480.0,0.00023192,2]
[381581652,1756289462994,-480.0,0.00023192,2]
[381581653,1756289463003,-480.0,0.00023192,2]
[381581654,1756289463013,-480.0,0.00023192,2]
[381581655,1756289463023,-521.63,0.00023192,2]
[381581656,1756289463033,-480.0,0.00023192,2]
[381581657,1756289463043,-575.26,0.00023192,2]
[381581658,1756289463052,-480.0,0.00023192,2]
[381581659,1756289463063,-480.0,0.00023192,2]
[381581660,1756289463078,-480.0,0.00023192,2]
[381581661,1756289463088,-151.0,0.00023192,7]
[381581662,1756289463098,-778.94,0.00023192,2]
[381581663,1756289463108,-873.99,0.00023192,2]
[381581664,1756289463120,-837.99,0.00023192,2]
[381581665,1756289463130,-151.0,0.00023192,7]
[381581666,1756289463140,-480.0,0.00023192,2]
[381581667,1756289463151,-151.0,0.00023192,7]
[381581668,1756289463161,-480.0,0.00023192,2]
[381581669,1756289463171,-151.0,0.00023192,7]
[381581670,1756289463181,-480.0,0.00023192,2]
[381581671,1756289463193,-494.87,0.00023192,2]
[381581672,1756289463202,-678.91,0.00023192,2]
[381581673,1756289463212,-480.0,0.00023192,2]
[381581674,1756289463222,-607.09499932,0.00023192,2]
[381581675,1756289463232,-480.0,0.00023192,2]
[381581676,1756289463242,-508.08,0.00023192,2]
[381581677,1756289463251,-480.0,0.00023192,2]
[381581678,1756289463262,-484.67,0.00023192,2]
[381581679,1756289463272,-480.0,0.00023192,2]
[381581680,1756289463288,-480.0,0.00023192,2]
[381581681,1756289463297,-539.91,0.00023192,2]
[381581682,1756289463307,-480.0,0.00023192,2]
[381581683,1756289463319,-480.0,0.00023192,2]
[381581684,1756289463329,-480.0,0.00023192,2]
[381581685,1756289463340,-480.0,0.00023192,2]
[381581686,1756289463351,-613.6,0.00023192,2]
[381581687,1756289463362,-480.0,0.00023192,2]
[381581688,1756289463372,-925.94,0.00023192,2]
[381581689,1756289463383,-533.76,0.00023192,2]
[381581691,1756289463394,-537.77,0.00023192,2]
[381581692,1756289463405,-562.98,0.00023192,2]
[381581693,1756289463416,-480.0,0.00023192,2]
[381581694,1756289463426,-480.0,0.00023192,2]
[381581696,1756289463437,-536.26,0.00023192,2]
[381581697,1756289463448,-480.0,0.00023192,2]
[381581698,1756289463458,-480.0,0.00023192,2]
[381581700,1756289463469,-480.0,0.00023192,2]
[381581701,1756289463479,-480.0,0.00023192,2]
[381581703,1756289463490,-480.0,0.00023192,2]
[381581705,1756289463501,-480.0,0.00023192,2]
[381581707,1756289463511,-480.0,0.00023192,2]
[381581727,1756289463678,-480.0,0.00023192,2]
[381581729,1756289463708,-592.79,0.00023192,2]
[381581731,1756289463718,-575.25,0.00023192,2]
[381581733,1756289463728,-582.79,0.00023192,2]
[381581735,1756289463738,-480.0,0.00023192,2]
[381581737,1756289463748,-480.0,0.00023192,2]
[381581739,1756289463758,-594.5,0.00023192,2]
[381581741,1756289463768,-480.0,0.00023192,2]
[381581743,1756289463788,-602.33,0.00023192,2]
[381581745,1756289463800,-506.86745737,0.00023221,2]
[381581747,1756289463809,-1000.0,0.00023221,2]
[381581749,1756289463819,-1000.0,0.00023221,2]
[381581751,1756289463828,-1000.0,0.00023221,2]
[381581753,1756289463837,-507.17363693,0.00023221,2]
[381581755,1756289463847,-1000.0,0.00023221,2]
[381581757,1756289463856,-1000.0,0.00023221,2]
[381581759,1756289463866,-398.07412314,0.00023221,2]
[381581761,1756289463875,-8404.79,0.00023221,2]
[381581763,1756289463884,-1727.42,0.00023221,2]
[381581765,1756289463894,-7813.59,0.00023221,2]
[381581767,1756289463903,-1737.92730801,0.00023353,2]
[381581768,1756289463913,-480.0,0.00023367,2]
[381581770,1756289463922,-480.0,0.00023367,2]
[381581772,1756289463932,-169.84550436,0.00023367,2]
[381581774,1756289463942,-480.0,0.00023367,2]
[381581776,1756289463951,-480.0,0.00023367,2]
[381581778,1756289463960,-573.74,0.00023367,2]
[381581780,1756289463970,-480.0,0.00023367,2]
[381581782,1756289463979,-480.0,0.00023367,2]
[381581784,1756289463989,-782.38,0.00023367,2]
[381581786,1756289463998,-480.0,0.00023367,2]
[381581788,1756289464009,-480.0,0.00023367,2]
[381581790,1756289464019,-480.0,0.00023367,2]
[381581792,1756289464028,-480.0,0.00023367,2]
[381581794,1756289464038,-480.0,0.00023367,2]
[381581796,1756289464048,-487.5662417,0.00023367,2]
[381581798,1756289464058,-819.02,0.00023367,2]
[381581801,1756289464071,-552.66,0.00023367,2]
[381581803,1756289464082,-813.43,0.00023367,2]
[381581804,1756289464093,-480.0,0.00023367,2]
[381581806,1756289464104,-530.66,0.00023367,2]
[381581808,1756289464114,-561.05744185,0.00023367,2]
[381581810,1756289464124,-579.34,0.00023367,2]
[381581812,1756289464133,-480.0,0.00023367,2]
[381581814,1756289464142,-490.29,0.00023367,2]
[381581816,1756289464154,-573.74,0.00023367,2]
[381581818,1756289464164,-517.72,0.00023367,2]
[381581820,1756289464175,-480.0,0.00023367,2]
[381581822,1756289464184,-480.0,0.00023367,2]
[381581824,1756289464194,-480.0,0.00023367,2]
[381581826,1756289464203,-480.0,0.00023367,2]
[381581828,1756289464213,-480.0,0.00023367,2]
[381581830,1756289464222,-753.59,0.00023367,2]
[381581832,1756289464232,-480.0,0.00023367,2]
[381581834,1756289464242,-152.697457,0.00023367,7]
[381581836,1756289464252,-530.04,0.00023367,2]
[381581838,1756289464262,-480.0,0.00023367,2]
[381581840,1756289464271,-480.0,0.00023367,2]
[381581842,1756289464281,-480.0,0.00023367,2]
[381581844,1756289464290,-629.53,0.00023367,2]
[381581846,1756289464300,-698.73,0.00023367,2]
[381581848,1756289464310,-480.0,0.00023367,2]
[381581850,1756289464321,-1713.01,0.00023367,2]
[381581852,1756289464331,-1968.29,0.00023367,2]
[381581854,1756289464340,-480.0,0.00023367,2]
[381581856,1756289464350,-480.0,0.00023367,2]
[381581858,1756289464359,-498.92356519,0.00023367,2]
[381581860,1756289464369,-736.15,0.00023367,2]
[381581862,1756289464379,-480.0,0.00023367,2]
[381581863,1756289464388,-480.0,0.00023367,2]
[381581865,1756289464398,-4264.07,0.00023367,2]
[381581868,1756289464409,-591.82,0.00023367,2]
[381581870,1756289464419,-576.58,0.00023367,2]
[381581872,1756289464428,-480.0,0.00023367,2]
[381581874,1756289464438,-778.47,0.00023367,2]
[381581876,1756289464448,-577.79,0.0002339,2]
[381581878,1756289464458,-480.0,0.0002339,2]
[381581880,1756289464467,-236.384275,0.0002339,2]
[381581882,1756289464477,-480.0,0.0002339,2]
[381581883,1756289464487,-480.0,0.0002339,2]
[381581885,1756289464496,-480.0,0.0002339,2]
[381581887,1756289464505,-534.38,0.0002339,2]
[381581889,1756289464515,-480.0,0.0002339,2]
[381581891,1756289464525,-651.4,0.0002339,2]
[381581893,1756289464535,-480.0,0.0002339,2]
[381581895,1756289464544,-879.81,0.0002339,2]
[381581897,1756289464554,-546.11,0.0002339,2]
[381581899,1756289464564,-480.0,0.0002339,2]
[381581901,1756289464575,-501.16,0.0002339,2]
[381581903,1756289464585,-480.0,0.0002339,2]
[381581905,1756289464594,-480.0,0.00023391,2]
[381581907,1756289464604,-2549.43,0.00023391,2]
[381581909,1756289464614,-595.63,0.00023391,2]
[381581911,1756289464623,-151.0,0.000234,7]
[381581913,1756289464633,-501.14039237,0.00023421,2]
[381581915,1756289464642,-226.91391802,0.00023421,2]
[381581917,1756289464651,-2330.74,0.0002343,2]
[381581919,1756289464661,-480.0,0.0002343,2]
[381581921,1756289464670,-480.0,0.0002343,2]
[381581923,1756289464680,-480.0,0.0002343,2]
[381581925,1756289464690,-603.02,0.0002343,2]
[381581927,1756289464700,-1386.14,0.0002343,2]
[381581929,1756289464709,-791.53,0.0002343,2]
[381581931,1756289464719,-584.49,0.0002343,2]
[381581933,1756289464728,-527.14,0.0002343,2]
[381581935,1756289464737,-648.14,0.0002343,2]
[381581937,1756289464747,-286.79,0.00023431,2]
[381581939,1756289464757,-480.0,0.00023431,2]
[381581941,1756289464766,-820.53,0.00023431,2]
[381581943,1756289464776,-480.0,0.00023431,2]
[381581945,1756289464786,-513.07,0.00023431,2]
[381581947,1756289464796,-480.0,0.00023431,2]
[381581949,1756289464805,-480.0,0.00023431,2]
[381581951,1756289464816,-502.54,0.00023431,2]
[381581953,1756289464827,-480.0,0.00023431,2]
[381581955,1756289464837,-480.0,0.00023431,2]
[381581957,1756289464846,-480.0,0.00023431,2]
[381581959,1756289464855,-480.0,0.00023431,2]
[381581961,1756289464865,-588.27,0.00023431,2]
[381581963,1756289464874,-480.0,0.00023431,2]
[381581965,1756289464884,-669.17,0.00023431,2]
[381581967,1756289464894,-480.0,0.00023431,2]
[381581969,1756289464903,-480.0,0.00023431,2]
[381581971,1756289464913,-594.95,0.00023431,2]
[381581973,1756289464923,-480.0,0.00023431,2]
[381581975,1756289464932,-480.0,0.00023431,2]
[381581977,1756289464941,-710.48,0.00023431,2]
[381581979,1756289464952,-480.0,0.00023431,2]
[381581980,1756289464962,-480.0,0.00023431,2]
[381581982,1756289464972,-480.0,0.00023431,2]
[381581984,1756289464981,-480.0,0.00023431,2]
[381581986,1756289464990,-560.13,0.00023431,2]
[381581988,1756289465000,-1415.64,0.00023431,2]
[381581990,1756289465011,-480.0,0.00023431,2]
[381581992,1756289465021,-480.0,0.00023431,2]
[381581994,1756289465031,-480.0,0.00023431,2]
[381581996,1756289465040,-480.0,0.00023431,2]
[381581998,1756289465049,-630.78,0.00023431,2]
[381582000,1756289465059,-480.0,0.00023431,2]
[381582002,1756289465069,-578.01,0.00023431,2]